bitfinex/quotes_SOLUSD_20240605
["timestamp","ask_amount","ask_price","bid_price","bid_amount"]
[1717570701378,1.13348547,173.92,173.91,387.0825]
[1717570701681,1.13348547,173.92,173.91,394.2225]
[1717570703102,1.13348547,173.92,173.91,387.0825]
[1717570703398,1.13348547,173.92,173.91,382.8275]
[1717570705178,1.13348547,173.92,173.91,2.5275]
[1717570706494,1.13348547,173.92,173.91,9.6675]
[1717570706994,1.13348547,173.92,173.91,13.9225]
[1717570707710,1.13348547,173.92,173.91,50.9028]
[1717570707994,1.13348547,173.92,173.91,51.0728]
[1717570708295,1.13348547,173.92,173.91,71.0728]
[1717570711002,1.13348547,173.92,173.91,451.3728]
[1717570712017,2.1263,174.01,173.96,2.1268]
[1717570712336,2.1262,174.02,173.97,2.1267]
[1717570713039,2.1263,174.01,173.97,2.1267]
[1717570714328,6.1053,174.04,173.92,14.8914]
[1717570714496,6.252,173.99,173.91,7.54]
[1717570714694,7.14,173.98,173.91,7.54]
[1717570714896,7.14,173.97,173.92,2.1273]
[1717570715315,2.1269,173.96,173.92,2.1273]
[1717570715724,9.2668,173.97,173.92,2.1273]
[1717570715930,15.4373,173.97,173.92,2.1273]
[1717570716926,15.4373,173.97,173.91,0.4]
[1717570717226,15.4373,173.97,173.93,2.1272]
[1717570720402,13.3105,173.97,173.93,2.1272]
[1717570721141,15.4373,173.97,173.93,2.1272]
[1717570722131,6.90196947,173.96,173.93,2.1272]
[1717570722300,15.4373,173.97,173.93,2.1272]
[1717570722500,6.90190039,173.96,173.93,2.1272]
[1717570722716,6.90190039,173.96,173.92,2.1273]
[1717570724346,6.90190039,173.96,173.93,2.1272]
[1717570725422,14.04190039,173.96,173.92,2.1273]
[1717570725619,6.90190039,173.95,173.92,2.1273]
[1717570725824,22.35100039,173.95,173.91,0.4]
[1717570726022,6.90190039,173.94,173.91,0.4]
[1717570726236,6.90190039,173.94,173.92,2.1273]
[1717570726951,6.90190039,173.94,173.91,2.5274]
[1717570729129,6.90190039,173.94,173.91,0.4]
[1717570730642,6.90190039,173.94,173.93,2.1272]
[1717570730820,6.90190039,173.98,173.93,7.14]
[1717570731148,6.90190039,173.97,173.94,2.1271]
[1717570731331,6.90190039,173.96,173.94,2.1271]
[1717570731527,6.90190039,173.95,173.93,2.1272]
[1717570731718,2.1268,173.97,173.93,2.1272]
[1717570731922,6.90162073,173.96,173.94,2.1271]
[1717570732246,2.1266,173.99,173.94,2.1271]
[1717570732421,6.90162241,173.98,173.94,2.1271]
[1717570733946,6.90162241,173.98,173.95,2.127]
[1717570735249,6.90162241,173.97,173.94,2.1271]
[1717570735551,9.02822241,173.98,173.94,7.14]
[1717570735845,6.90162241,173.97,173.94,7.14]
[1717570736230,6.90162241,173.97,173.94,9.2671]
[1717570737453,6.90162241,173.97,173.93,2.1272]
[1717570739736,6.90162241,173.97,173.94,2.1271]
[1717570739942,6.90162241,173.97,173.94,2.127]
[1717570740149,12.7576,174.02,173.94,2.127]
[1717570740150,9.02822241,173.98,173.94,2.127]
[1717570740450,6.90162241,173.97,173.92,4.2547]
[1717570740956,6.90162241,173.97,173.94,2.1271]
[1717570741156,6.90162241,173.98,173.94,2.1271]
[1717570741741,6.90162241,173.98,173.95,2.127]
[1717570742860,6.90162241,173.98,173.97,2.1268]
[1717570743042,6.90162241,174.01,173.98,2.1266]
[1717570743359,2.1262,174.02,173.98,2.1266]
[1717570743360,6.90123076,174.0,173.98,2.1266]
[1717570743736,2.1262,174.02,173.98,2.1266]
[1717570743941,2.1262,174.02,173.95,4.254]
[1717570743942,2.1262,174.02,173.97,9.2667]
[1717570744166,2.1262,174.02,173.98,2.1266]
[1717570744545,6.9011341,174.01,173.98,2.1266]
[1717570745272,2.1262,174.02,173.98,2.1266]
[1717570745742,6.90023381,174.01,173.98,2.1266]
[1717570746069,2.1262,174.02,173.97,9.2667]
[1717570746070,6.90023381,174.0,173.97,9.2667]
[1717570746279,6.90023381,174.01,173.97,9.2667]
[1717570746485,6.90023381,174.0,173.97,9.2667]
[1717570746650,6.90023381,174.01,173.97,9.2667]
[1717570747375,9.02653381,174.01,173.97,9.2667]
[1717570747587,6.90023381,174.0,173.97,7.14]
[1717570748080,2.1262,174.02,173.97,9.2667]
[1717570748279,6.90004143,174.01,173.97,9.2667]
[1717570748654,2.1263,174.01,173.97,9.2667]
[1717570748860,6.90004143,174.0,173.97,2.1267]
[1717570751593,6.90004143,174.0,173.96,2.1268]
[1717570751799,2.1264,174.0,173.93,11.3944]
[1717570751966,9.02654143,173.99,173.95,2.1269]
[1717570752296,9.02674143,173.98,173.94,2.127]
[1717570752592,6.90004143,173.97,173.94,2.127]
[1717570752791,6.90004143,173.97,173.95,2.127]
[1717570753191,2.1263,174.01,173.96,2.1268]
[1717570753368,6.90098973,174.0,173.96,2.1268]
[1717570753882,9.02738973,174.0,173.95,9.2669]
[1717570754082,6.90098973,173.99,173.95,9.2669]
[1717570754302,6.90098973,173.99,173.96,2.1269]
[1717570757915,6.90098973,174.0,173.97,2.1267]
[1717570758411,6.90098973,174.0,173.96,2.1268]
[1717570758587,9.02738973,174.0,173.96,2.1268]
[1717570758795,6.90098973,173.99,173.96,2.1268]
[1717570759315,6.90098973,173.99,173.96,7.14]
[1717570759493,9.02718973,174.02,173.97,2.1267]
[1717570759687,9.02728973,174.01,173.97,2.1267]
[1717570759893,6.90098973,174.0,173.96,9.2668]
[1717570760115,6.90098973,174.0,173.96,2.1268]
[1717570761614,6.90098973,174.0,173.95,7.14]
[1717570761615,6.90098973,174.0,173.97,2.1267]
[1717570762028,6.90098973,174.0,173.95,7.14]
[1717570762331,2.126,174.03,173.98,2.1266]
[1717570762498,6.90037092,174.02,173.98,2.1266]
[1717570763124,6.90037092,174.01,173.97,9.2667]
[1717570763408,6.90037092,174.0,173.98,2.1266]
[1717570763605,6.90037092,174.01,173.98,2.1266]
[1717570763806,6.90037092,174.0,173.98,2.1266]
[1717570764007,6.90037092,174.01,173.98,2.1266]
[1717570764216,2.1261,174.02,173.98,2.1266]
[1717570764404,2.126,174.03,173.98,2.1266]
[1717570764931,2.126,174.03,173.98,9.2666]
[1717570766217,2.126,174.04,173.99,9.2665]
[1717570767117,2.126,174.03,173.99,9.2665]
[1717570767412,2.126,174.04,173.99,2.1265]
[1717570767817,2.126,174.03,173.99,2.1265]
[1717570768602,2.126,174.04,173.99,2.1265]
[1717570769021,2.126,174.03,173.99,2.1265]
[1717570771110,6.89953471,174.02,173.99,2.1265]
[1717570771311,27.18794645,174.06,174.01,2.1263]
[1717570771312,16.55934645,174.06,174.01,2.1263]
[1717570771613,6.8994912,174.05,174.02,2.1261]
[1717570771810,7.14,174.07,174.02,2.1261]
[1717570771811,6.8994912,174.04,174.02,2.1261]
[1717570772024,6.8994912,174.06,174.02,2.1261]
[1717570772330,9.0251912,174.06,174.02,2.1261]
[1717570772508,6.8994912,174.05,174.02,2.1261]
[1717570772711,6.8994912,174.05,174.01,9.2662]
[1717570772907,9.0252912,174.05,174.01,9.2662]
[1717570773135,2.1258,174.05,174.01,9.2662]
[1717570773741,2.1258,174.05,174.01,2.1262]
[1717570773950,2.1257,174.06,174.01,2.1262]
[1717570774618,9.2657,174.06,174.01,2.1262]
[1717570775010,16.55782727,174.08,174.02,21.2519]
[1717570775210,6.8988873,174.07,174.04,2.1258]
[1717570775414,2.1254,174.09,174.04,2.1258]
[1717570776539,2.1254,174.08,174.04,2.1258]
[1717570777916,2.1254,174.08,174.04,8.3229]
[1717570778842,2.1254,174.09,174.04,8.3229]
[1717570779033,2.1254,174.08,174.04,8.3229]
[1717570779623,2.1254,174.08,174.04,24.4167]
[1717570780116,2.1253,174.09,174.04,24.4167]
[1717570780352,6.89763742,174.08,174.04,22.2909]
[1717570780517,6.89763742,174.08,174.04,24.4168]
[1717570780718,9.02303742,174.08,174.04,24.4168]
[1717570781216,6.89763742,174.08,174.05,2.1257]
[1717570781417,9.2653,174.09,174.04,24.3879]
[1717570782121,2.1253,174.09,174.04,24.3879]
[1717570782321,9.2653,174.09,174.04,24.3879]
[1717570782936,2.1254,174.08,174.04,24.3879]
[1717570783140,9.2654,174.09,174.04,24.3879]
[1717570783543,2.1254,174.09,174.04,24.3879]
[1717570783729,9.2654,174.09,174.04,24.3879]
[1717570785253,9.2654,174.09,174.05,2.1258]
[1717570789144,7.14,174.1,174.06,23.6794]
[1717570789473,6.8974518,174.09,174.06,23.6794]
[1717570789648,7.14,174.1,174.06,23.6794]
[1717570790157,2.1252,174.1,174.06,23.6794]
[1717570791264,16.16281304,174.09,174.05,2.1257]
[1717570791451,9.2653,174.09,174.05,2.1257]
[1717570792347,7.14,174.09,174.05,2.1257]
[1717570792740,7.14,174.08,174.05,2.1258]
[1717570792959,10.6254,174.11,174.03,2.126]
[1717570792960,7.14,174.06,174.03,2.126]
[1717570793273,6.3754,174.11,174.03,2.126]
[1717570793274,7.14,174.05,174.03,2.126]
[1717570793444,2.1255,174.07,174.03,2.126]
[1717570793762,7.14,174.06,174.03,2.126]
[1717570794856,2.1255,174.08,174.04,2.1259]
[1717570795059,7.14,174.06,174.04,2.1259]
[1717570796050,7.14,174.06,174.03,2.1259]
[1717570797058,7.14,174.06,174.04,2.1259]
[1717570797561,2.1255,174.08,174.04,2.1259]
[1717570797941,7.14,174.06,174.04,2.1259]
[1717570798145,7.14,174.06,174.03,2.1259]
[1717570800372,9.2659,174.04,174.0,2.1263]
[1717570800563,7.14,174.01,173.99,8.4126]
[1717570800759,4.2517,174.05,173.98,2.1266]
[1717570801069,7.14,173.99,173.96,2.1268]
[1717570801377,4.2522,174.03,173.95,6.2764]
[1717570801378,7.14,173.98,173.95,6.2764]
[1717570801562,7.14,173.98,173.96,2.1269]
[1717570801884,7.14,173.98,173.95,2.1269]
[1717570802389,27.18531406,174.03,173.93,20.3074]
[1717570802390,7.14,173.97,173.94,2.1271]
[1717570802694,7.14,173.97,173.93,16.053]
[1717570802695,7.14,173.96,173.93,2.1271]
[1717570803057,7.14,173.95,173.92,2.1273]
[1717570803256,8.6267659,173.93,173.92,2.1273]
[1717570804084,8.6267659,173.93,173.91,2.5275]
[1717570804279,7.14,173.94,173.91,2.5275]
[1717570804280,8.62787111,173.92,173.91,2.5275]
[1717570804478,8.62787111,173.92,173.91,0.4]
[1717570804668,2.1271,173.94,173.91,0.4]
[1717570805464,7.14,173.92,173.91,0.4]
[1717570805662,2.2974,173.92,173.91,0.4]
[1717570805877,9.6074,173.92,173.91,0.4]
[1717570806395,18.23606154,173.92,173.91,0.4]
[1717570807285,9.6074,173.92,173.91,0.4]
[1717570807678,2.4674,173.92,173.91,0.4]
[1717570807880,9.6074,173.92,173.91,0.4]
[1717570808896,2.4674,173.92,173.91,0.4]
[1717570809097,20.0,173.96,173.91,0.4]
[1717570809270,2.1271,173.95,173.91,0.4]
[1717570809475,9.2671,173.95,173.91,0.4]
[1717570809791,8.62922963,173.92,173.91,0.4]
[1717570810177,8.62922963,173.93,173.91,0.4]
[1717570810803,8.62922963,173.93,173.91,30.4]
[1717570811095,8.62922963,173.95,173.92,24.0667]
[1717570811279,8.62922963,173.95,173.93,8.2293]
[1717570811882,8.62922963,173.95,173.93,30.0]
[1717570812386,8.62922963,173.94,173.93,30.0]
[1717570813192,17.89632963,173.95,173.93,30.0]
[1717570813491,8.62922963,173.95,173.91,0.4]
[1717570813700,15.76922963,173.95,173.91,2.5275]
[1717570814608,17.89632963,173.95,173.91,0.4]
[1717570815217,7.14,173.94,173.91,0.4]
[1717570815903,9.2671,173.94,173.91,0.4]
[1717570816091,2.1273,173.93,173.91,0.4]
[1717570816290,2.2974,173.92,173.91,0.4]
[1717570816502,7.48,173.92,173.91,0.4]
[1717570816893,2.4674,173.92,173.91,0.4]
[1717570817097,9.6074,173.92,173.91,0.4]
[1717570817889,18.23763138,173.92,173.91,0.4]
[1717570818598,9.6074,173.92,173.91,0.4]
[1717570819104,18.23763138,173.92,173.91,0.4]
[1717570821121,9.6074,173.92,173.91,0.4]
[1717570822007,2.4674,173.92,173.91,0.4]
[1717570822317,9.6074,173.92,173.91,0.4]
[1717570824391,2.1273,173.93,173.91,0.4]
[1717570824627,19.26545026,173.95,173.91,0.4]
[1717570824810,7.14,173.93,173.91,0.4]
[1717570825120,2.1273,173.93,173.91,0.4]
[1717570825420,9.2673,173.93,173.91,0.4]
[1717570825795,9.2674,173.92,173.91,0.4]
[1717570827808,9.6074,173.92,173.91,0.4]
[1717570831133,2.1276,173.91,173.86,2.0281]
[1717570831450,7.14,173.9,173.86,2.0281]
[1717570832314,9.2676,173.9,173.84,16.1563]
[1717570832638,7.14,173.89,173.85,2.1281]
[1717570832812,9.2677,173.89,173.84,18.2846]
[1717570833133,9.2677,173.89,173.81,4.6574]
[1717570833134,7.14,173.85,173.81,0.4]
[1717570833303,7.14,173.84,173.81,0.4]
[1717570833815,6.3844,173.87,173.81,0.4]
[1717570833816,9.268,173.87,173.81,0.4]
[1717570834021,0.17,173.86,173.81,24.9581]
[1717570834228,0.17,173.86,173.81,0.4]
[1717570834536,9.2684,173.84,173.81,0.4]
[1717570834740,7.48,173.83,173.81,0.4]
[1717570835436,0.17,173.83,173.81,0.4]
[1717570835611,10.75835026,173.86,173.81,22.0194]
[1717570835803,10.75835026,173.86,173.81,24.1481]
[1717570835804,17.89835026,173.86,173.81,24.1481]
[1717570836010,8.63015026,173.86,173.82,15.5987]
[1717570836210,8.63015026,173.87,173.83,8.3613]
[1717570836415,7.14,173.88,173.85,2.1282]
[1717570836619,7.14,173.88,173.83,8.3613]
[1717570836835,9.2679,173.88,173.83,8.3613]
[1717570837350,9.268,173.87,173.83,6.2329]
[1717570837914,2.1279,173.88,173.83,8.3613]
[1717570838139,7.14,173.87,173.83,6.2329]
[1717570839331,9.268,173.87,173.83,6.2329]
[1717570839540,0.34,173.89,173.83,8.3613]
[1717570839710,7.14,173.88,173.83,8.3613]
[1717570839925,9.2679,173.88,173.83,8.3613]
[1717570840543,7.14,173.86,173.82,2.1285]
[1717570842137,9.2681,173.86,173.81,2.5286]
[1717570842841,7.14,173.85,173.81,2.5286]
[1717570843027,7.14,173.85,173.81,2.5287]
[1717570844532,7.14,173.85,173.81,0.4]
[1717570844734,0.17,173.84,173.81,0.4]
[1717570844950,7.14,173.83,173.81,0.4]
[1717570845134,9.6084,173.84,173.81,0.4]
[1717570845831,0.34,173.84,173.81,0.4]
[1717570846052,7.48,173.84,173.81,0.4]
[1717570846237,7.31,173.84,173.81,0.4]
[1717570846443,9.2683,173.85,173.81,0.4]
[1717570847242,0.17,173.86,173.81,23.0067]
[1717570847445,0.17,173.86,173.82,6.0865]
[1717570847673,9.268,173.87,173.82,8.2151]
[1717570847834,9.268,173.87,173.82,6.0865]
[1717570849249,9.268,173.87,173.82,21.6978]
[1717570850466,9.2681,173.87,173.82,21.6978]
[1717570850641,2.1279,173.88,173.83,8.5596]
[1717570850951,2.1278,173.89,173.84,2.1283]
[1717570851261,9.2678,173.89,173.84,2.1283]
[1717570851459,9.2678,173.89,173.83,24.8895]
[1717570851758,2.1279,173.88,173.83,24.8895]
[1717570852462,2.1279,173.88,173.84,23.2972]
[1717570854061,2.1279,173.88,173.85,15.3467]
[1717570854260,6.3826,173.91,173.87,21.7612]
[1717570854261,2.1275,173.91,173.87,21.7612]
[1717570854569,2.1274,173.92,173.87,9.2679]
[1717570854772,2.1273,173.93,173.88,23.889]
[1717570855145,2.1274,173.92,173.88,21.7612]
[1717570855537,2.1273,173.93,173.89,30.0036]
[1717570855740,2.1273,173.93,173.9,6.2729]
[1717570857968,4.2538,173.97,173.9,6.2729]
[1717570858266,2.1271,173.94,173.91,6.0093]
[1717570859262,2.1271,173.95,173.91,6.0093]
[1717570859670,2.4669,173.96,173.91,8.1368]
[1717570859848,7.48,173.96,173.91,6.0093]
[1717570860257,2.1271,173.95,173.91,6.0093]
[1717570860563,7.48,173.96,173.91,6.0093]
[1717570860764,2.1271,173.94,173.91,6.0093]
[1717570862167,2.1271,173.94,173.9,15.4111]
[1717570862593,9.2671,173.94,173.9,15.4111]
[1717570862786,2.1272,173.93,173.89,2.1277]
[1717570862941,9.2672,173.94,173.89,2.1277]
[1717570863142,9.2672,173.94,173.9,2.1276]
[1717570863568,2.1272,173.94,173.9,25.0798]
[1717570864054,9.2671,173.95,173.9,25.0798]
[1717570865185,2.1272,173.94,173.9,22.9522]
[1717570865391,2.1272,173.94,173.9,25.0798]
[1717570866181,7.14,173.95,173.9,120.0]
[1717570866385,16.56698017,174.03,173.94,6.0407]
[1717570866607,18.69308017,174.03,173.97,7.14]
[1717570866877,9.2661,174.03,173.99,2.1265]
[1717570867087,2.1261,174.03,173.99,2.1265]
[1717570867396,2.1261,174.03,173.98,2.1266]
[1717570867565,2.1262,174.02,173.98,2.1266]
[1717570868285,2.1261,174.03,173.99,6.1423]
[1717570868464,2.1261,174.03,173.99,8.2688]
[1717570868663,2.1261,174.03,173.99,24.6916]
[1717570868862,2.1262,174.02,173.99,22.5651]
[1717570869051,2.1262,174.02,173.99,6.1423]
[1717570869255,2.1262,174.02,173.97,7.14]
[1717570869456,2.1262,174.02,173.97,13.4285]
[1717570869686,9.266,174.03,173.98,8.415]
[1717570869893,2.126,174.03,173.99,8.415]
[1717570870293,7.71,174.04,173.99,8.415]
[1717570870294,9.8359,174.04,173.99,8.415]
[1717570870461,9.8359,174.04,174.0,2.1264]
[1717570870778,2.5259,174.04,174.0,22.4551]
[1717570871661,2.5259,174.04,174.0,24.5815]
[1717570872281,2.5259,174.04,174.0,22.4551]
[1717570873266,2.5259,174.04,174.0,24.5815]
[1717570875821,2.126,174.03,174.0,22.4551]
[1717570876817,2.526,174.04,174.0,22.4551]
[1717570878015,2.5259,174.04,174.0,24.5815]
[1717570881134,2.5259,174.04,174.0,22.4551]
[1717570882410,2.5259,174.04,174.0,24.5815]
[1717570883300,0.4,174.04,174.01,6.5717]
[1717570883506,0.4,174.04,174.02,6.5717]
[1717570889621,0.4,174.04,174.03,6.4809]
[1717570892237,0.4,174.04,174.03,8.6069]
[1717570895451,0.4,174.04,174.03,24.3956]
[1717570895750,0.4,174.04,174.03,31.5356]
[1717570896250,0.4,174.04,174.03,50.6701]
[1717570899057,0.4,174.04,174.03,43.5301]
[1717570899351,0.4,174.04,174.03,6.3781]
[1717570899845,0.4,174.04,174.03,2.126]
[1717570909358,0.4,174.04,174.03,19.3033]
[1717570909562,0.4,174.04,174.03,43.3946]
[1717570909867,0.4,174.04,174.03,50.5346]
[1717570911160,0.4,174.04,174.03,43.3946]
[1717570911343,0.4,174.04,174.03,50.5346]
[1717570916277,0.4,174.04,174.03,43.3946]
[1717570916445,0.4,174.04,174.03,50.5346]
[1717570918183,0.4,174.04,174.03,43.3946]
[1717570918555,0.4,174.04,174.03,50.5346]
[1717570922558,0.4,174.04,174.03,2.126]
[1717570932766,0.4,174.04,173.98,120.0]
[1717570932996,0.4,174.04,174.02,2.1261]
[1717570933182,0.4,174.04,174.03,2.126]
[1717570933801,0.4,174.04,174.03,35.0508]
[1717570934809,0.4,174.04,174.03,50.3017]
[1717570937812,31.0235,174.14,174.09,120.0]
[1717570937813,0.4,174.14,174.09,120.0]
[1717570937991,7.14,174.16,174.09,127.14]
[1717570938192,7.14,174.16,174.11,2.125]
[1717570938405,7.14,174.16,174.12,2.1249]
[1717570939211,2.1244,174.17,174.12,2.1249]
[1717570939513,7.14,174.16,174.12,2.1249]
[1717570939906,2.1244,174.16,174.12,2.1249]
[1717570940108,9.2644,174.17,174.12,2.1249]
[1717570940420,28.96,174.24,174.1,7.14]
[1717570940421,35.332,174.24,174.1,7.14]
[1717570940706,2.1243,174.17,174.13,2.1247]
[1717570941007,9.2643,174.17,174.13,2.1247]
[1717570941185,2.1243,174.17,174.13,2.1247]
[1717570941389,9.2643,174.17,174.13,2.1247]
[1717570941882,2.1244,174.16,174.12,2.1249]
[1717570942816,2.1243,174.17,174.12,2.1249]
[1717570942995,2.1245,174.16,174.12,2.1249]
[1717570944499,9.2644,174.17,174.13,2.1248]
[1717570944903,2.1245,174.16,174.12,2.1249]
[1717570945111,9.2645,174.16,174.12,2.1249]
[1717570945824,7.14,174.15,174.12,2.1249]
[1717570947126,9.2646,174.15,174.11,2.125]
[1717570947298,7.14,174.15,174.12,2.1249]
[1717570950006,9.2645,174.16,174.12,2.1249]
[1717570952718,7.14,174.15,174.12,2.1249]
[1717570953115,2.1245,174.16,174.12,2.1249]
[1717570953306,2.1245,174.16,174.13,2.1248]
[1717570953515,7.14,174.15,174.13,2.1248]
[1717570954028,7.14,174.15,174.12,2.1249]
[1717570955105,9.2645,174.16,174.12,2.1249]
[1717570955805,2.1245,174.16,174.13,2.1248]
[1717570956005,9.2645,174.16,174.13,2.1248]
[1717570959108,2.1245,174.16,174.13,2.1248]
[1717570959315,9.2645,174.16,174.13,2.1248]
[1717570960033,2.1245,174.16,174.13,2.1248]
[1717570960249,2.1244,174.17,174.13,2.1248]
[1717570960438,7.14,174.16,174.13,2.1248]
[1717570961108,9.2645,174.16,174.13,2.1248]
[1717570961308,9.2645,174.16,174.12,47.1248]
[1717570961715,9.2645,174.16,174.13,2.1248]
[1717570961943,2.1245,174.16,174.13,2.1248]
[1717570962117,4.2485,174.18,174.12,45.0]
[1717570962118,7.14,174.14,174.12,47.1249]
[1717570962315,7.14,174.13,174.12,47.1249]
[1717570962516,7.14,174.14,174.12,47.1249]
[1717570962823,2.1245,174.16,174.12,2.1249]
[1717570963029,7.14,174.14,174.12,2.1249]
[1717570963333,7.14,174.16,174.13,2.1248]
[1717570963547,7.14,174.15,174.13,47.1248]
[1717570963918,7.14,174.15,174.13,2.1248]
[1717570964650,7.14,174.15,174.14,2.1247]
[1717570964941,7.14,174.15,174.13,2.1247]
[1717570968743,7.14,174.15,174.14,2.1247]
[1717570969848,7.14,174.15,174.13,2.1247]
[1717570970753,2.1244,174.17,174.13,2.1247]
[1717570970946,7.14,174.15,174.13,2.1247]
[1717570971133,2.1245,174.16,174.13,2.1247]
[1717570971323,28.4962,174.2,174.12,45.0]
[1717570971530,7.14,174.15,174.12,47.1248]
[1717570971834,7.14,174.15,174.12,2.1248]
[1717570972343,7.14,174.15,174.13,2.1248]
[1717570972645,7.14,174.14,174.13,2.1248]
[1717570973752,4.2474,174.23,174.14,6.3741]
[1717570973921,9.2636,174.23,174.19,2.124]
[1717570974126,2.1237,174.22,174.19,2.124]
[1717570974341,2.1236,174.23,174.19,2.124]
[1717570974540,9.2636,174.23,174.19,2.124]
[1717570976631,7.14,174.22,174.19,2.124]
[1717570977444,2.1236,174.23,174.19,2.124]
[1717570977863,7.14,174.22,174.19,2.124]
[1717570978358,2.1236,174.23,174.2,6.2118]
[1717570978524,0.4,174.24,174.21,8.3355]
[1717570979148,0.4,174.24,174.21,2.1237]
[1717570979457,2.5235,174.24,174.2,2.1239]
[1717570979954,9.6635,174.24,174.2,2.1239]
[1717570980658,2.5235,174.24,174.2,2.1239]
[1717570980835,9.6635,174.24,174.2,2.1239]
[1717570981036,9.2636,174.23,174.19,2.124]
[1717570981636,2.1236,174.23,174.19,2.124]
[1717570981854,9.2636,174.23,174.19,2.124]
[1717570982562,7.14,174.22,174.19,2.124]
[1717570982861,7.14,174.21,174.17,6.2118]
[1717570983156,7.14,174.21,174.18,2.1242]
[1717570983455,7.14,174.21,174.19,2.124]
[1717570983765,7.14,174.22,174.19,2.124]
[1717570984862,2.5235,174.24,174.2,2.1239]
[1717570985037,7.14,174.23,174.2,2.1239]
[1717570985649,0.4,174.24,174.21,2.1238]
[1717570985851,9.6635,174.24,174.2,2.1239]
[1717570986037,7.14,174.23,174.2,2.1239]
[1717570986238,2.5235,174.24,174.2,2.1239]
[1717570986437,7.14,174.23,174.2,2.1239]
[1717570987561,9.2636,174.23,174.2,2.1239]
[1717570987753,7.14,174.21,174.2,2.1239]
[1717570987949,7.14,174.21,174.19,2.124]
[1717570988262,0.4,174.24,174.15,133.2479]
[1717570988263,7.14,174.2,174.15,6.1079]
[1717570988468,7.14,174.19,174.15,10.3569]
[1717570988672,7.14,174.2,174.15,10.3569]
[1717570988885,7.14,174.21,174.18,2.1242]
[1717570989463,0.4,174.24,174.23,2.1236]
[1717570989669,0.4,174.24,174.23,8.2697]
[1717570995652,0.4,174.24,174.2,4.2478]
[1717570995978,0.4,174.24,174.22,2.1237]
[1717570998182,7.14,174.23,174.2,2.1239]
[1717570998379,7.14,174.22,174.19,130.6204]
[1717570998554,7.14,174.22,174.21,2.1238]
[1717571000957,0.4,174.24,174.21,2.1238]
[1717571001164,7.14,174.23,174.21,2.1238]
[1717571001672,0.4,174.24,174.21,2.1238]
[1717571002250,7.14,174.23,174.21,2.1238]
[1717571004254,0.4,174.24,174.21,2.1238]
[1717571004653,7.54,174.24,174.21,2.1238]
[1717571004980,7.14,174.23,174.21,2.1238]
[1717571010589,7.14,174.23,174.2,2.1239]
[1717571012675,7.54,174.24,174.2,2.1239]
[1717571013692,0.4,174.24,174.18,380.3]
[1717571013899,7.14,174.19,174.18,380.3]
[1717571014066,7.14,174.19,174.18,382.4242]
[1717571014889,7.14,174.2,174.18,382.4242]
[1717571015860,7.14,174.2,174.18,380.3]
[1717571017069,7.14,174.19,174.11,15.0368]
[1717571017267,7.14,174.19,174.12,2.1249]
[1717571017268,7.14,174.14,174.12,2.1249]
[1717571017483,4.2484,174.18,174.09,380.3]
[1717571017484,7.14,174.13,174.09,380.3]
[1717571017667,8.6647,174.23,174.13,120.0]
[1717571017875,0.4,174.24,174.15,120.0]